Cogmind - Beta 13 @@@ ROGUE MODE // 2024.05.22 @ 20:31:43 Player: Sunsh1n3 Result: Destroyed by G-34 Mercenary with Small Laser Performance ------------- Evolutions (1) 500 Regions Visited (2) 400 Robots Destroyed (10) 50 Value Destroyed (295) 295 Prototype IDs (0) 0 Alien Tech Used (0) 0 Bonus (0) 0 TOTAL SCORE: 1245 Bonus ------- None Cogmind --------- Core Integrity 0/400 Matter 290/300 Energy 26/100 System Corruption 0% Temperature Danger (465) Movement Treading (240) Ox1 Location -9/Materials Parts ------- > --- POWER (1) -------- (None) > --- PROPULSION (4) --- Light Treads Light Treads > --- UTILITY (2) ------ High-capacity Storage Unit Utility Shielding > --- WEAPON (2) ------- Particle Cannon Particle Cannon > --- INVENTORY (20) --- VTOL Module VTOL Module VTOL Module VTOL Module Large Matter Pod (150) Weight Redist. System Sensor Array Targeting Computer Targeting Computer Datajack Peak State ------------ > --- POWER ------------ Improved Ion Engine > --- PROPULSION ------- Aluminum Leg Aluminum Leg Aluminum Leg > --- UTILITY ---------- Heat Sink High-capacity Storage Unit > --- WEAPON ----------- Light Assault Rifle Datajack > --- INVENTORY -------- Ion Engine Light Treads Light Treads Light Treads Light Treads VTOL Module VTOL Module VTOL Module VTOL Module Large Matter Pod Weight Redist. System Sensor Array Targeting Computer Targeting Computer Utility Shielding Medium Laser Medium Laser [Rating: 11] Favorites ----------- Power Ion Engine Engine Ion Engine Propulsion Aluminum Leg Treads Light Treads Leg Aluminum Leg Utility Heat Sink Device Heat Sink Storage High-capacity Storage Unit Protection Utility Shielding Weapon Light Assault Rifle Energy Gun Medium Laser Energy Cannon Particle Cannon Ballistic Gun Light Assault Rifle Special Melee Weapon Datajack Build | -11 -10 -9 ------- Run | Yrd Mat Mat Slots Evolved 2 | . . 2 Power . | . . . Propulsion 2 | . . 2 Utility . | . . . Weapon . | . . . Parts Attached 24 | 6 4 14 Power 4 | 1 1 2 Engine 4 | 1 1 2 Core . | . . . Reactor . | . . . Propulsion 7 | 2 . 5 Treads 4 | . . 4 Leg 3 | 2 . 1 Wheel . | . . . Hover . | . . . Flight . | . . . Utility 5 | 1 3 1 Device 1 | . 1 . Storage 3 | 1 2 . Processor . | . . . Hackware . | . . . Protection 1 | . . 1 Artifact . | . . . Weapon 8 | 2 . 6 Energy Gun 3 | 1 . 2 Energy Cannon 3 | . . 3 Ballistic Gun 1 | 1 . . Ballistic Cannon . | . . . Launcher . | . . . Special Weapon . | . . . Impact Weapon . | . . . Slashing Weapon . | . . . Piercing Weapon . | . . . Special Melee Weapon 1 | . . 1 Unidentified Prototypes . | . . . Parts Lost 13 | . 1 12 Power 3 | . 1 2 Propulsion 5 | . . 5 Utility 1 | . . 1 Weapon 4 | . . 4 Highest Loss Streak 12 | . 1 12 To Critical Strikes . | . . . Average Slot Usage (%) 93 | . 98 81 Engine 12 | . 13 10 Leg 27 | . 28 26 Device 9 | . 9 8 Storage 15 | . 17 11 Energy Gun 10 | . 14 3 Ballistic Gun 12 | . 14 9 Special Melee Weapon 1 | . . 6 Naked Turns . | . . . Heaviest Build 51 | 13 49 51 Greatest Support 80 | 20 20 80 Greatest Overweight (x) 4 | . 2 4 Average Overweight (x) . | . . 1 Largest Inventory Capacity 20 | 8 20 20 Average Capacity 13 | 6 11 20 Most Carried 17 | 5 12 17 Average Carried 9 | 2 7 15 Final Capacity 20 | 8 20 20 Final Carried 12 | 4 12 10 Class Distribution -------------------- 100% | Mutant Dominant Class ---------------- Mutant | -10/Materials Mutant | -9/Materials Resources | -11 -10 -9 ----------- Run | Yrd Mat Mat Matter Collected 560 | 232 215 113 Remotely . | . . . Salvage Created 457 | . 298 159 Parts 22 | . 12 10 Haulers Intercepted 2 | . 1 1 Recyclers Shooed . | . . . Parts Field Recycled . | . . . Retrieved Matter . | . . . Parts Self-Destructed . | . . . Prevented . | . . . Kills | -11 -10 -9 ------- Run | Yrd Mat Mat Combat Hostiles Destroyed 7 | . 5 2 Guns 6 | . 5 1 Cannons 1 | . . 1 Classes Destroyed 4 | . 3 1 Hauler 2 | . 1 1 Watcher 1 | . 1 . Grunt 6 | . 5 1 Sentry 1 | . . 1 Best Kill Streak 2 | . 2 2 Combat Bots Only 2 | . 2 1 Max Kills in Single Turn 1 | . 1 1 Gunslinging . | . . . Exploded . | . . . Melee . | . . . Uniques/NPCs Destroyed . | . . . Combat | -11 -10 -9 -------- Run | Yrd Mat Mat Hostile Shots Fired 191 | . 38 153 Missed 42 | . 11 31 Damage Taken 1958 | . 318 1640 Core 500 | . 94 406 Absorbed by Shields . | . . . Redirected to Shielding 12 | . . 12 Core Remaining (%) 81 | 100 62 . Volleys Fired 63 | . 42 21 Largest 2 | . 2 2 Hottest 136 | . 70 136 Shots Fired 117 | . 84 33 Gun 105 | . 84 21 Cannon 12 | . . 12 Launcher . | . . . Special . | . . . Kinetic 52 | . 42 10 Thermal 65 | . 42 23 Explosive . | . . . Electromagnetic . | . . . Robot Hit Streak 6 | . 6 6 Robot Miss Streak 7 | . 7 3 Penetration Max . | . . . Secondary Targets . | . . . Shots Hit Robots 73 | . 50 23 Core Hits 24 | . 17 7 Critical Kills . | . . . Critical Parts Destroyed . | . . . Critical Strikes 5 | . 4 1 Burn 5 | . 4 1 Melee Attacks 2 | . . 2 Impact . | . . . Slashing . | . . . Piercing . | . . . Sneak Attacks 1 | . . 1 Combat Hostiles . | . . . Follow-up Attacks . | . . . Damage Inflicted 848 | . 536 312 Guns 627 | . 519 108 Cannons 204 | . . 204 Explosions . | . . . Melee . | . . . Ramming 17 | . 17 . Kinetic 236 | . 192 44 Thermal 595 | . 327 268 Explosive . | . . . Electromagnetic . | . . . Impact . | . . . Slashing . | . . . Piercing . | . . . Highest Corruption 3 | . 3 . Average Corruption 2 | . 2 . Corruption Purged . | . . . Corruption Blocked . | . . . Effects 1 | . 1 . Matter Fused 1 | . 1 . Overload Shots . | . . . Overflow Damage . | . . . Projectiles . | . . . Explosions . | . . . Melee . | . . . Knockbacks . | . . . Impact . | . . . Kinetic . | . . . Secondary . | . . . Self-Inflicted Damage . | . . . Shots . | . . . Rammed . | . . . Targets Rammed 5 | . 5 . Kicked 5 | . 5 . Crushed . | . . . Highest Temperature 479 | . 154 479 Average Temperature 95 | . 38 183 Received Heat Transfer 876 | . 180 696 Siege Activations . | . . . Robots Corrupted . | . . . Combat Hostiles . | . . . Parts Fried . | . . . Impact Corruptions . | . . . Robots Melted . | . . . Combat Hostiles . | . . . Parts Melted 7 | . 5 2 Heat Transferred 1887 | . 1258 629 Parts Sabotaged . | . . . Parts Stolen . | . . . Parts Stripped . | . . . Power Chain Reactions . | . . . Alert | -11 -10 -9 ------- Run | Yrd Mat Mat Peak Influence 151 | . 151 93 Initial 28 | . . 28 Average 48 | . 58 37 Maximum Alert Level . | . . . Low Security (%) 100 | 100 100 100 Level 1 . | . . . Level 2 . | . . . Level 3 . | . . . Level 4 . | . . . Level 5 . | . . . High Security . | . . . Max Security . | . . . Squads Dispatched 2 | . 1 1 Investigation . | . . . Extermination . | . . . Reinforcement 2 | . 1 1 Assault . | . . . Garrison . | . . . Intercept . | . . . Searches Triggered . | . . . Construction Impeded . | . . . Haulers Reinforced . | . . . Active Scanning Responses . | . . . Cargo Convoy Interrupts . | . . . Stealth | -11 -10 -9 --------- Run | Yrd Mat Mat Distress Signals 3 | . 2 1 Communications Jammed . | . . . Distress Signals . | . . . Times Spotted 20 | . 13 7 Peak Tracking Total 6 | . 3 6 Tactical Retreats . | . . . Traps | -11 -10 -9 ------- Run | Yrd Mat Mat Traps Triggered 2 | . 2 . Indirectly . | . . . Trap Hack Attempts . | . . . Triggered . | . . . Disarmed . | . . . Reprogrammed . | . . . Reused . | . . . Traps Extracted . | . . . Installed . | . . . Triggered . | . . . Machines | -11 -10 -9 ---------- Run | Yrd Mat Mat Machines Disabled . | . . . Max in Single Turn . | . . . Machines Repaired . | . . . Machines Dismantled . | . . . Machines Sabotaged . | . . . Overloaded Fab Kills . | . . . Hacking | -11 -10 -9 --------- Run | Yrd Mat Mat Machines Accessed 3 | . 2 1 Terminals 3 | . 2 1 Fabricators . | . . . Repair Stations . | . . . Recycling Units . | . . . Scanalyzers . | . . . Garrison Access . | . . . Total Hacks 6 | . 4 2 Successful 2 | . 2 . Failed 4 | . 2 2 Catastrophic . | . . . Database Lockouts . | . . . Manual 3 | . 3 . Terminals 6 | . 4 2 Fabricators . | . . . Repair Stations . | . . . Recycling Units . | . . . Scanalyzers . | . . . Garrison Access . | . . . Terminal Hacks 2 | . 2 . Robot Schematic 1 | . 1 . Hauler Manifests 1 | . 1 . Fabricator Hacks . | . . . Repair Station Hacks . | . . . Recycling Unit Hacks . | . . . Scanalyzer . | . . . Garrison Access Hacks . | . . . Unauthorized Hacks . | . . . Terminals . | . . . Fabricators . | . . . Repair Stations . | . . . Recycling Units . | . . . Scanalyzers . | . . . Garrison Access . | . . . Data Cores Recovered . | . . . Used . | . . . Hacking Detections 3 | . 2 1 Full Trace Events . | . . . Feedback Events . | . . . Feedback Blocked . | . . . Robot Schematics Acquired 1 | . 1 . Robots Built . | . . . Authchips . | . . . Time . | . . . Total Robot Build Rating . | . . . Part Schematics Acquired . | . . . Parts Built . | . . . Authchips . | . . . Time . | . . . Total Part Build Rating . | . . . Parts Repaired . | . . . Time . | . . . Parts Recycled . | . . . Recycled Matter . | . . . Retrieved Matter . | . . . Retrieved Components . | . . . Parts Scanalyzed . | . . . Part Schematics Acquired . | . . . Parts Damaged . | . . . Bothacking | -11 -10 -9 ------------ Run | Yrd Mat Mat Used RIF Installer . | . . . Robots Hacked 1 | . . 1 Non-combat 1 | . . 1 Combat . | . . . Robot Hacks Applied 1 | . . 1 parse_system 1 | . . 1 Relay Couplers Released . | . . . Fabnet Peak Effective % . | . . . Robots Rewired . | . . . Allies Hacked . | . . . Hacks Repelled . | . . . Allies | -11 -10 -9 -------- Run | Yrd Mat Mat Total Allies . | . . . Largest Group . | . . . Highest-Rated Group . | . . . Highest-Rated Ally . | . . . Total Orders . | . . . Ally Attacks . | . . . Total Damage . | . . . Kills . | . . . Allies Corrupted . | . . . Allies Melted . | . . . Intel | -11 -10 -9 ------- Run | Yrd Mat Mat Robot Analysis Total . | . . . Derelict Logs Recovered . | . . . Drone Launches . | . . . Drone Recoveries . | . . . Exploration | -11 -10 -9 ------------- Run | Yrd Mat Mat Turns Passed 958 | 69 619 270 Spaces Moved 475 | 51 324 100 Core 10 | 10 . . Treads 4 | . . 4 Legs 461 | 41 324 96 Wheels . | . . . Hover . | . . . Flight . | . . . Fastest Speed 50 | 50 120 160 Average Speed 150 | 106 145 191 Slowest Speed 400 | 120 260 400 Overloaded Moves . | . . . Propulsion Burnouts . | . . . Robots Hopped . | . . . Cave-ins Triggered . | . . . Exploration Rate (%) 19 | 5 37 17 Regions Visited 2 Branch Regions . Pre-discovered Areas . | . . . Known Exits Taken . | . . . Unknown Exits Taken 2 | 1 1 . Scrap Searched . | . . . Spaces Dug . | . . . Terrain Destroyed . | . . . Melee . | . . . Projectile . | . . . AOE . | . . . Terrain Rammed . | . . . Walls Destroyed . | . . . Machines Disabled . | . . . Actions | -11 -10 -9 --------- Run | Yrd Mat Mat Total 610 | 66 398 146 Wait 13 | . 13 . Move 473 | 50 323 100 Hop . | . . . Pick Up 29 | 10 10 9 Fast Attach . | . . . Attach 19 | 6 2 11 Detach . | . . . Swap 5 | . 2 3 Drop 1 | . 1 . Fire 63 | . 42 21 Melee 2 | . . 2 Ram . | . . . Kick 5 | . 5 . Crush . | . . . Escape Stasis . | . . . Rewire . | . . . Trap . | . . . Miscellaneous . | . . . Route ------- -11/Scrapyard -10/Materials -9/Materials History --------- Turn | Location | Event 5 | -11/Scrapyard | Discovered new exit (range 14) 70 | -11/Scrapyard | Entered Materials 309 | -10/Materials | Build established: Mutant 676 | -10/Materials | Discovered new exit (range 5) 689 | -10/Materials | Entered another Materials area 689 | -9/Materials | Evolved 2 slots: Propulsion x2 927 | -9/Materials | Core integrity fell below 50% 937 | -9/Materials | Core integrity fell below 20% 959 | -9/Materials | Destroyed by G-34 Mercenary with Small Laser Last Messages --------------- 00916_ Aluminum Leg destroyed. 00920_ Critical hit (Burn: +37). 00920_ Acquired Particle Cannon. 00923_ Imp. Ion Engine destroyed. 00926_ Critical hit (Burn: +37). 00928_ R-06 Scavenger collects Weight Redist. System. 00931_ R-06 Scavenger collects Ion Engine. 00936_ R-06 Scavenger collects Particle Cannon. 00936_ Lgt. Treads melted. 00936_ Heat Sink melted. 00936_ Y-45 Defender destroyed. 00939_ Particle Cannon destroyed. 00939_ R-06 Scavenger collects Particle Cannon. 00940_ Acquired 113 matter. 00944_ Acquired Particle Cannon. 00945_ R-06 Scavenger destroyed. 00946_ Acquired Particle Cannon. 00947_ Ion Engine destroyed. 00948_ Lgt. Treads destroyed. Map ----- +----------------------------------------------------+ | | | | | | | | | | | | | | | ?????????????????????????????????????????????????? | | ?????????????????????????????????????????????????? | | ?????????????????????????????????????????????????? | | ?????????????????????????????????????????????????? | | ?????????????????????????????????????????????????? | | ?????????????????????????????????????????????????? | | ?????????????????????????????????????????????????? | | ?????????????????????????????????????????????????? | | ?????????????????????????????????????????????????? | | ?????????????????????????###?????????????????????? | | ????????????????????????## ######????????????????? | | ????????????????????????# #????????????????? | | ????????????????????????# !!! #?????#??????????? | | ??????????????????????### !! #???? ?????????? | | ??????????????????????#"" !! #???? ??????????? | | ??????????????????????#"" Y #??? ??????????? | | ??????????????????????#"T "" #??? ??? #?????? | | ??????????????????????#"" """ #?? """ #?????? | | ??????????????????????#""@!* # """ #?????? | | ??????????????????????###= *!!= + """ #?????? | | ???????????????###+######[]%!g! # #?????? | | ???????????????# #=Y==]g # ???????? | | ???????????????# """ #;####### """ ???????? | | ???????????????# """ #%###### """ ???????? | | ???????????????# """ #= """ ???????? | | ???????????????# + #?????? | | ???????????????# """ # #?????? | | ???????????????# """ # ???? | | ???????????????# """ # ### ???? | | ???????????????# # #??? ???? | | ???????????????####+##+## #?????###???? | | ??????????????????# ## """ """ #???????????? | | ??????????????????# ## """ """ #???????????? | | ??????????????????# ## """ """ #???????????? | | ??????????????????# ## #???????????? | | ???????????######## ##^ #???????????? | | ???????????# # """ """? #???????????? | | ???????????# # """ "??? ????????????? | | ???????????# + """ ""???????????????? | | ????#####??# "T" # ??????????????? | | ????#"""#??# """ # ??????????????? | | ????#"Y"#??# # ############### ?????????????? | | ???##" "########### #????????????????????????????? | +----------------------------------------------------+ Best States ------------- Heat Dissipation 38 Energy Generation 12 Energy Capacity 265 Matter Stores 339 Matter Capacity 450 Sight Range 16 Terrain Scan Density 10 Utility Shielding 33 Evasion (%) 55 Recoil Reduction 4 Item Schematics ----------------- None Robot Schematics ------------------ G-34 Mercenary | -10/Materials | Hacked Fabricated ------------ Nothing Alien Tech Used ----------------- None Achievements -------------- None Challenges ------------ None Game ------ Seed SmartbombExplosiveSuite Manual? 0 Play Time 00:12:00 Cumulative 4.6 hours Start 2024.05.22 @ 20:19:37 End 2024.05.22 @ 20:31:43 Sessions 1 Manual Loads 0 Difficulty Rogue Special Mode None Game No. 9 Rogue 9 Adventurer 0 Explorer 0 Win Type - Total 0 Types 0/0/0/0/0/0/0/0/0 Lore% 10 Gallery% 13 Achievement% 10 Wizard Run 0 Options --------- Layout 1 ASCII 0 Keyboard 0 Movement Mouse Keybinds 0 Fullscreen 2 Font 24/Smallcaps Map View 50x35 Zoom Use 0% Tactical HUD 1 Map Filters NONE Filters NONE Steam 1 RUN: f9abf0dd-1781-4ee2-a1c4-85f6d4b6381a